fUST/lending_fUST_20240415
["ID","MTS","AMOUNT","RATE_DAILY","PERIOD"]
[322650369,1713174644586,-500.0,0.00038356,7]
[322650370,1713174644595,-502.2059746,0.00038356,7]
[322650371,1713174644603,-500.0,0.00038356,7]
[322650372,1713174644612,-500.0,0.00038356,7]
[322650373,1713174644622,-610.56222512,0.00038356,7]
[322650374,1713174644632,-500.0,0.00038356,7]
[322650375,1713174644641,-500.0,0.00038356,7]
[322650376,1713174644650,-660.73,0.00038356,7]
[322650377,1713174644660,-847.63,0.00038356,7]
[322650378,1713174644669,-500.0,0.00038356,7]
[322650379,1713174644678,-500.0,0.00038356,7]
[322650380,1713174644687,-500.0,0.00038356,7]
[322650381,1713174644697,-569.94,0.00038356,7]
[322650382,1713174644706,-500.0,0.00038356,7]
[322650383,1713174644715,-342.9007668,0.00038356,7]
[322650384,1713174644727,-500.0,0.00038356,7]
[322650385,1713174644736,-500.0,0.00038356,7]
[322650386,1713174644745,-500.0,0.00038356,7]
[322650387,1713174644754,-328.20221557,0.00038356,7]
[322650388,1713174644764,-1934.71,0.00038356,7]
[322650389,1713174644772,-501.28070667,0.00038356,7]
[322650390,1713174644781,-180.76597381,0.00038356,7]
[322650391,1713174644790,-500.0,0.00038356,7]
[322650392,1713174644800,-500.0,0.00038356,7]
[322650393,1713174644809,-500.0,0.00038356,7]
[322650394,1713174644818,-502.62058759,0.00038356,7]
[322650395,1713174644827,-500.34633543,0.00038356,7]
[322650396,1713174644836,-1875.01,0.00038356,7]
[322650397,1713174644846,-500.62243868,0.00038356,7]
[322650398,1713174644855,-500.0,0.00038356,7]
[322650399,1713174644864,-500.0,0.00038356,7]
[322650400,1713174644873,-503.68129025,0.00038356,7]
[322650401,1713174644883,-500.0,0.00038356,7]
[322650402,1713174644892,-500.0,0.00038356,7]
[322650403,1713174644900,-500.0,0.00038356,7]
[322650404,1713174644910,-500.0,0.00038356,7]
[322650405,1713174644919,-506.2178269,0.00038356,7]
[322650406,1713174644928,-540.95760803,0.00038356,7]
[322650407,1713174644938,-157.1611639,0.00038356,7]
[322650408,1713174644947,-501.37249857,0.00038356,7]
[322650409,1713174644955,-500.0,0.00038356,7]
[322650410,1713174644964,-500.66133456,0.00038356,7]
[322650411,1713174644974,-500.0,0.00038356,7]
[322650412,1713174644983,-500.42622041,0.00038356,7]
[322650413,1713174644992,-500.0,0.00038356,7]
[322650414,1713174645002,-507.75063778,0.00038356,7]
[322650415,1713174645011,-580.38035158,0.00038356,7]
[322650416,1713174645020,-500.0,0.00038356,7]
[322650417,1713174645029,-503.7610539,0.00038356,7]
[322650418,1713174645039,-502.71471259,0.00038356,7]
[322650419,1713174645048,-500.0,0.00038356,7]
[322650420,1713174645057,-500.44211465,0.00038356,7]
[322650421,1713174645066,-500.0804829,0.00038356,7]
[322650422,1713174645075,-501.7755429,0.00038356,7]
[322650423,1713174645086,-500.0,0.00038356,7]
[322650424,1713174645096,-500.0,0.00038356,7]
[322650425,1713174645106,-500.0,0.00038356,7]
[322650426,1713174645115,-500.0,0.00038356,7]
[322650427,1713174645224,-247.08671596,0.00038356,7]
[322650428,1713174645250,-500.0,0.00038356,7]
[322650429,1713174645260,-182.30918949,0.00038356,7]
[322650430,1713174645269,-500.0,0.00038356,7]
[322650431,1713174645279,-500.0,0.00038356,7]
[322650432,1713174645289,-500.0,0.00038356,7]
[322650433,1713174645299,-500.0,0.00038356,7]
[322650434,1713174645308,-500.12059736,0.00038356,7]
[322650435,1713174645320,-504.54873786,0.00038356,7]
[322650436,1713174645333,-928.18,0.00038356,7]
[322650437,1713174645342,-500.0,0.00038356,7]
[322650438,1713174645351,-500.0,0.00038356,7]
[322650439,1713174645361,-500.0,0.00038356,7]
[322650440,1713174645372,-500.0,0.00038356,7]
[322650441,1713174645381,-500.0,0.00038356,7]
[322650442,1713174645390,-502.75745812,0.00038356,7]
[322650443,1713174645399,-986.52,0.00038356,7]
[322650444,1713174645409,-500.0,0.00038356,7]
[322650445,1713174645421,-526.18882919,0.00038356,7]
[322650446,1713174645431,-500.0,0.00038356,7]
[322650447,1713174645445,-500.0,0.00038356,7]
[322650448,1713174645455,-624.01313666,0.00038356,7]
[322650449,1713174645465,-260.43191565,0.00038356,7]
[322650450,1713174645474,-500.0,0.00038356,7]
[322650451,1713174645483,-347.49450367,0.00038356,7]
[322650452,1713174645492,-248.49602471,0.00038356,7]
[322650453,1713174645502,-500.0,0.00038356,7]
[322650454,1713174645511,-503.84800836,0.00038356,14]
[322650455,1713174645522,-500.0,0.00038356,7]
[322650456,1713174645532,-687.03,0.00038356,7]
[322650457,1713174645541,-500.0,0.00038356,7]
[322650458,1713174645550,-461.11073422,0.00038356,7]
[322650459,1713174645559,-585.92229088,0.00038356,7]
[322650460,1713174645568,-500.0,0.00038356,7]
[322650461,1713174645578,-381.30544139,0.00038356,7]
[322650462,1713174645587,-587.31,0.00038356,7]
[322650463,1713174645597,-500.0,0.00038356,7]
[322650464,1713174645606,-500.0,0.00038356,7]
[322650465,1713174645615,-628.06593109,0.00038356,7]
[322650466,1713174645624,-500.0,0.00038356,7]
[322650467,1713174645634,-500.0,0.00038356,7]
[322650468,1713174645643,-1714.42,0.00038356,7]
[322650469,1713174645652,-500.0,0.00038356,7]
[322650470,1713174645661,-500.0,0.00038356,7]
[322650471,1713174645670,-500.0,0.00038356,7]
[322650472,1713174645680,-490.48546717,0.00038356,7]
[322650473,1713174645689,-500.0,0.00038356,7]
[322650474,1713174645698,-500.0,0.00038356,7]
[322650475,1713174645707,-500.0,0.00038356,7]
[322650476,1713174645716,-500.0,0.00038356,7]
[322650477,1713174645726,-728.35,0.00038356,7]
[322650478,1713174645735,-500.0,0.00038356,7]
[322650479,1713174645744,-500.0,0.00038356,7]
[322650480,1713174645753,-500.0,0.00038356,7]
[322650481,1713174645763,-500.0,0.00038356,7]
[322650483,1713174645772,-500.0,0.00038356,7]
[322650485,1713174645781,-3028.44,0.00038356,7]
[322650487,1713174645791,-500.0,0.00038356,7]
[322650489,1713174645800,-500.0,0.00038356,7]
[322650491,1713174645809,-500.0,0.00038356,7]
[322650493,1713174645818,-500.0,0.00038356,7]
[322650494,1713174645828,-500.0,0.00038356,7]
[322650498,1713174645837,-500.0,0.00038356,7]
[322650500,1713174645847,-500.0,0.00038356,7]
[322650501,1713174645856,-500.0,0.00038356,7]
[322650503,1713174645865,-500.47438899,0.00038356,7]
[322650505,1713174645874,-500.0,0.00038356,7]
[322650506,1713174645884,-500.0,0.00038356,7]
[322650508,1713174645893,-500.0,0.00038356,7]
[322650510,1713174645902,-500.0,0.00038356,7]
[322650511,1713174645912,-310.41617973,0.00038356,7]
[322650512,1713174645921,-515.23065907,0.00038356,7]
[322650513,1713174645930,-500.0,0.00038356,7]
[322650514,1713174645939,-500.0,0.00038356,7]
[322650515,1713174645949,-500.0,0.00038356,7]
[322650516,1713174645958,-500.0,0.00038356,7]
[322650517,1713174645967,-500.0,0.00038356,7]
[322650518,1713174645978,-880.28,0.00038356,7]
[322650520,1713174645987,-500.61093964,0.00038356,7]
[322650521,1713174645995,-500.0,0.00038356,7]
[322650522,1713174646005,-500.0,0.00038356,7]
[322650523,1713174646014,-510.41384822,0.00038356,7]
[322650524,1713174646023,-539.94,0.00038356,7]
[322650525,1713174646032,-500.0,0.00038356,7]
[322650526,1713174646041,-564.42581654,0.00038356,7]
[322650527,1713174646051,-220.70634571,0.00038356,7]
[322650528,1713174646060,-500.0,0.00038356,7]
[322650529,1713174646069,-1268.66,0.00038356,7]
[322650530,1713174646079,-501.17964239,0.00038356,7]
[322650531,1713174646088,-500.0,0.00038356,7]
[322650532,1713174646097,-500.0,0.00038356,7]
[322650533,1713174646106,-567.09,0.00038356,7]
[322650534,1713174646116,-500.0,0.00038356,7]
[322650535,1713174646125,-500.0,0.00038356,7]
[322650536,1713174646134,-538.83616492,0.00038356,7]
[322650537,1713174646143,-500.0,0.00038356,7]
[322650538,1713174646152,-500.0,0.00038356,7]
[322650539,1713174646162,-500.0,0.00038356,7]
[322650540,1713174646171,-500.0,0.00038356,7]
[322650541,1713174646180,-532.19,0.00038356,7]
[322650542,1713174646189,-500.0,0.00038356,7]
[322650543,1713174646199,-511.36802021,0.00038356,7]
[322650544,1713174646213,-500.0,0.00038356,7]
[322650545,1713174646223,-500.0,0.00038356,7]
[322650546,1713174646232,-505.11706561,0.00038356,7]
[322650547,1713174646241,-480.1215,0.00038356,7]
[322650548,1713174646251,-500.0,0.00038356,7]
[322650549,1713174646260,-500.0,0.00038356,7]
[322650550,1713174646269,-500.0,0.00038356,7]
[322650551,1713174646281,-500.0,0.00038356,7]
[322650552,1713174646291,-500.0,0.00038356,7]
[322650553,1713174646300,-500.0,0.00038356,7]
[322650554,1713174646309,-500.0,0.00038356,7]
[322650555,1713174646319,-500.0,0.00038356,7]
[322650556,1713174646328,-500.0,0.00038356,7]
[322650557,1713174646338,-500.0,0.00038356,7]
[322650558,1713174646347,-521.28866419,0.00038356,7]
[322650559,1713174646358,-500.0,0.00038356,7]
[322650560,1713174646367,-500.0,0.00038356,7]
[322650561,1713174646377,-500.0,0.00038356,7]
[322650562,1713174646386,-500.0,0.00038356,7]
[322650563,1713174646395,-500.0,0.00038356,7]
[322650564,1713174646404,-500.0,0.00038356,7]
[322650565,1713174646413,-500.0,0.00038356,7]
[322650566,1713174646422,-500.0,0.00038356,7]
[322650568,1713174646431,-500.0,0.00038356,7]
[322650570,1713174646440,-585.0944718,0.00038356,7]
[322650571,1713174646450,-501.62545804,0.00038356,7]
[322650572,1713174646459,-500.0,0.00038356,7]
[322650573,1713174646468,-500.0,0.00038356,7]
[322650574,1713174646479,-575.82,0.00038356,7]
[322650575,1713174646488,-500.0,0.00038356,7]
[322650576,1713174646498,-500.0,0.00038356,7]
[322650577,1713174646507,-500.0,0.00038356,7]
[322650578,1713174646517,-500.0,0.00038356,7]
[322650579,1713174646527,-500.0,0.00038356,7]
[322650580,1713174646536,-500.0,0.00038356,7]
[322650581,1713174646546,-500.0,0.00038356,7]
[322650582,1713174646556,-500.0,0.00038356,7]
[322650583,1713174646569,-500.0,0.00038356,7]
[322650585,1713174646578,-500.0,0.00038356,7]
[322650587,1713174646587,-500.0,0.00038356,7]
[322650589,1713174646596,-500.0,0.00038356,7]
[322650590,1713174646606,-500.0,0.00038356,7]
[322650591,1713174646615,-500.0,0.00038356,7]
[322650592,1713174646624,-500.0,0.00038356,7]
[322650593,1713174646632,-511.80119331,0.00038356,7]
[322650594,1713174646642,-602.80168772,0.00038356,7]
[322650595,1713174646650,-500.0,0.00038356,7]
[322650596,1713174646660,-500.0,0.00038356,7]
[322650597,1713174646668,-544.32,0.00038356,7]
[322650598,1713174646677,-500.0,0.00038356,7]
[322650599,1713174646686,-731.34,0.00038356,7]
[322650600,1713174646695,-500.0,0.00038356,7]
[322650601,1713174646704,-500.0,0.00038356,7]
[322650602,1713174646713,-517.7,0.00038356,7]
[322650603,1713174646723,-6750.61,0.00038356,7]
[322650604,1713174646731,-505.42529058,0.00038356,7]
[322650605,1713174646740,-500.0,0.00038356,7]
[322650606,1713174646749,-852.59,0.00038356,7]
[322650607,1713174646758,-502.72110859,0.00038356,7]
[322650608,1713174646766,-500.6998944,0.00038356,2]
[322650609,1713174646775,-500.0,0.00038356,7]
[322650610,1713174646784,-500.0,0.00038356,7]
[322650611,1713174646793,-500.0,0.00038356,7]
[322650612,1713174646801,-4444.69,0.00038356,10]
[322650613,1713174646810,-4444.69,0.00038356,10]
[322650614,1713174646819,-4444.69,0.00038356,10]
[322650615,1713174646828,-4444.69,0.00038356,10]
[322650616,1713174646837,-4444.69,0.00038356,10]
[322650617,1713174646846,-4444.69,0.00038356,10]
[322650618,1713174646855,-4444.69,0.00038356,10]
[322650619,1713174646864,-500.0,0.00038356,7]
[322650620,1713174646873,-4444.69,0.00038356,10]
[322650621,1713174646882,-4444.69,0.00038356,10]
[322650622,1713174646890,-4444.69,0.00038356,10]
[322650623,1713174646899,-4444.69,0.00038356,10]
[322650624,1713174646908,-4444.69,0.00038356,10]
[322650625,1713174646918,-4444.69,0.00038356,10]
[322650626,1713174646927,-544.66643485,0.00038356,7]
[322650627,1713174646936,-4444.69,0.00038356,10]
[322650628,1713174646946,-4444.69,0.00038356,10]
[322650629,1713174646955,-4444.69,0.00038356,10]
[322650630,1713174646965,-315.95942848,0.00038356,7]
[322650631,1713174646975,-4444.69,0.00038356,10]
[322650632,1713174646983,-4444.69,0.00038356,10]
[322650633,1713174646992,-214.92059295,0.00038356,7]
[322650634,1713174647000,-4444.69,0.00038356,10]
[322650635,1713174647009,-4444.69,0.00038356,10]
[322650636,1713174647018,-4444.69,0.00038356,10]
[322650637,1713174647028,-4444.69,0.00038356,10]
[322650638,1713174647064,-4444.69,0.00038356,10]
[322650639,1713174647073,-4444.79343138,0.00038356,10]
[322650640,1713174647082,-500.0,0.00038356,7]
[322650641,1713174647091,-500.0,0.00038356,7]
[322650642,1713174647100,-500.0,0.00038356,7]
[322650643,1713174647109,-500.0,0.00038356,7]
[322650644,1713174647118,-646.62,0.00038356,7]
[322650645,1713174647127,-500.0,0.00038356,7]
[322650646,1713174647136,-500.0,0.00038356,7]
[322650647,1713174647145,-860.52,0.00038356,7]
[322650648,1713174647154,-500.0,0.00038356,7]
[322650649,1713174647163,-523.2291265,0.00038356,7]
[322650650,1713174647172,-545.31,0.00038356,7]
[322650651,1713174647181,-500.0,0.00038356,7]
[322650652,1713174647189,-500.0,0.00038356,7]
[322650653,1713174647198,-500.0,0.00038356,7]
[322650654,1713174647212,-1254.04,0.00038356,7]
[322650655,1713174647221,-500.0,0.00038356,7]
[322650656,1713174647231,-500.0,0.00038356,7]
[322650657,1713174647240,-1505.25,0.00038356,7]
[322650658,1713174647250,-500.0,0.00038356,7]
[322650659,1713174647259,-513.75,0.00038356,7]
[322650660,1713174647268,-500.0,0.00038356,7]
[322650661,1713174647278,-894.63,0.00038356,7]
[322650662,1713174647287,-501.06899842,0.00038356,7]
[322650663,1713174647296,-500.0,0.00038356,7]
[322650664,1713174647305,-500.0,0.00038356,7]
[322650665,1713174647314,-7411.42,0.00038356,7]
[322650666,1713174647324,-500.90292457,0.00038356,7]
[322650667,1713174647333,-502.40559419,0.00038356,7]
[322650668,1713174647342,-500.0,0.00038356,7]
[322650669,1713174647351,-16454.58,0.00038356,7]
[322650670,1713174647360,-500.0,0.00038356,7]
[322650671,1713174647370,-500.0,0.00038356,7]
[322650672,1713174647379,-711.23,0.00038356,7]
[322650673,1713174647388,-501.64,0.00038356,7]
[322650674,1713174647397,-500.0,0.00038356,7]
[322650675,1713174647406,-500.0,0.00038356,7]
[322650676,1713174647415,-2567.9,0.00038356,7]
[322650677,1713174647424,-500.0,0.00038356,7]
[322650678,1713174647434,-500.0,0.00038356,7]
[322650679,1713174647443,-1667.69,0.00038356,7]
[322650680,1713174647453,-500.0,0.00038356,7]
[322650681,1713174647462,-821.06,0.00038356,7]
[322650682,1713174647473,-500.0,0.00038356,7]
[322650683,1713174647482,-3984.66,0.00038356,7]
[322650684,1713174647492,-620.32,0.00038356,7]
[322650685,1713174647501,-5213.84,0.00038356,7]
[322650686,1713174647510,-500.0,0.00038356,7]
[322650687,1713174647519,-2361.51,0.00038356,7]
[322650688,1713174647528,-297.15132522,0.00038356,7]
[322650689,1713174647537,-500.0,0.00038356,7]
[322650690,1713174647546,-500.0,0.00038356,7]
[322650691,1713174647555,-597.0811703,0.00038356,7]
[322650692,1713174647563,-2949.32,0.00038356,7]
[322650693,1713174647572,-501.84482706,0.00038356,7]
[322650694,1713174647581,-3367.12,0.00038356,7]
[322650695,1713174647590,-500.0,0.00038356,7]
[322650696,1713174647599,-794.25,0.00038356,7]
[322650697,1713174647608,-500.0,0.00038356,7]
[322650698,1713174647617,-500.0,0.00038356,7]
[322650699,1713174647626,-22919.02,0.00038356,7]
[322650700,1713174647635,-415.2594982,0.00038356,7]
[322650701,1713174647644,-973.4,0.00038356,7]
[322650702,1713174647653,-508.79,0.00038356,7]
[322650703,1713174647663,-684.07,0.00038356,7]
[322650704,1713174647671,-500.0,0.00038356,7]
[322650705,1713174647681,-500.0,0.00038356,7]
[322650706,1713174647690,-500.0,0.00038356,7]
[322650707,1713174647699,-500.0,0.00038356,7]
[322650708,1713174647708,-500.0,0.00038356,7]
[322650709,1713174647717,-714.29,0.00038356,7]
[322650710,1713174647727,-1105.21,0.00038356,7]
[322650711,1713174647737,-1954.32,0.00038356,7]
[322650712,1713174647747,-503.8581181,0.00038356,7]
[322650713,1713174647756,-500.0,0.00038356,7]
[322650714,1713174647766,-500.0,0.00038356,7]
[322650715,1713174647775,-559.58,0.00038356,7]
[322650716,1713174647784,-2129.71,0.00038356,7]
[322650717,1713174647793,-500.0,0.00038356,7]
[322650718,1713174647802,-538.22322364,0.00038356,7]
[322650719,1713174647811,-500.0,0.00038356,7]
[322650720,1713174647820,-500.0,0.00038356,7]
[322650721,1713174647829,-500.0,0.00038356,7]
[322650722,1713174647838,-500.82731888,0.00038356,7]
[322650723,1713174647848,-500.0,0.00038356,7]
[322650724,1713174647857,-500.0,0.00038356,7]
[322650725,1713174647866,-2625.28,0.00038356,7]
[322650726,1713174647876,-501.6214705,0.00038356,7]
[322650727,1713174647885,-500.0,0.00038356,7]
[322650728,1713174647894,-500.0,0.00038356,7]
[322650729,1713174647903,-500.0,0.00038356,7]
[322650730,1713174647912,-505.16619145,0.00038356,7]
[322650731,1713174647922,-500.0,0.00038356,7]
[322650732,1713174647931,-500.0,0.00038356,7]
[322650733,1713174647940,-500.0,0.00038356,7]
[322650734,1713174647949,-200.56078508,0.00038356,7]
[322650735,1713174647958,-500.0,0.00038356,7]
[322650736,1713174647967,-500.0,0.00038356,7]
[322650737,1713174647976,-48001.12,0.00038356,7]
[322650738,1713174647985,-500.0,0.00038356,7]
[322650739,1713174647993,-697.51,0.00038356,7]
[322650740,1713174648003,-500.0,0.00038356,7]
[322650741,1713174648012,-720.51,0.00038356,7]
[322650742,1713174648021,-309.61300308,0.00038356,7]
[322650743,1713174648031,-505.59375201,0.00038356,7]
[322650744,1713174648041,-500.0,0.00038356,7]
[322650745,1713174648050,-500.0,0.00038356,7]
[322650746,1713174648060,-500.0,0.00038356,7]
[322650747,1713174648069,-500.0,0.00038356,7]
[322650748,1713174648078,-4905.75,0.00038356,7]
[322650749,1713174648088,-300.0,0.00038356,7]
[322650750,1713174648097,-500.0,0.00038356,7]
[322650751,1713174648106,-500.0,0.00038356,7]
[322650752,1713174648115,-494.28968635,0.00038356,7]
[322650753,1713174648125,-523.26,0.00038356,7]
[322650754,1713174648135,-500.0,0.00038356,7]
[322650755,1713174648144,-10146.25,0.00038356,7]
[322650756,1713174648154,-500.0,0.00038356,7]
[322650757,1713174648163,-500.0,0.00038356,7]
[322650758,1713174648173,-500.0,0.00038356,7]
[322650759,1713174648182,-500.0,0.00038356,7]
[322650760,1713174648191,-500.0,0.00038356,7]
[322650761,1713174648201,-294.72427134,0.00038356,7]
[322650762,1713174648213,-500.0,0.00038356,7]
[322650763,1713174648222,-500.0,0.00038356,7]
[322650764,1713174648231,-1676.91,0.00038356,7]
[322650765,1713174648241,-500.0,0.00038356,7]
[322650766,1713174648251,-26938.51,0.00038356,7]
[322650767,1713174648261,-13792.84807316,0.00038356,7]
[322650768,1713174648355,-2668.47,0.00038356,7]
[322650769,1713174648677,-154.75239617,0.00030998,2]
[322650770,1713174648686,-500.0,0.00030999,2]
[322650771,1713174648695,-500.0,0.00030999,2]
[322650772,1713174648704,-500.0,0.00030999,2]
[322650773,1713174648713,-500.0,0.00030999,2]
[322650774,1713174648722,-418.69865724,0.00030999,2]
[322650775,1713174648732,-500.0,0.00030999,2]
[322650776,1713174648741,-500.0,0.00030999,2]
[322650777,1713174648751,-500.0,0.00030999,2]
[322650778,1713174648760,-500.0,0.00030999,2]
[322650779,1713174648770,-500.0,0.00030999,2]
[322650780,1713174648780,-500.0,0.00030999,2]
[322650781,1713174648789,-500.0,0.00030999,2]
[322650782,1713174648799,-500.0,0.00030999,2]
[322650783,1713174648808,-500.0,0.00030999,2]
[322650784,1713174648817,-500.0,0.00030999,2]
[322650785,1713174648826,-500.0,0.00030999,2]
[322650786,1713174648836,-1519.67832251,0.00033315,2]
[322650787,1713174648897,-0.00041058,0.00033315,2]
[322650788,1713174648910,-4156.13779086,0.00033315,2]
[322650817,1713174876781,831.25896061,0.000398,30]
[322650819,1713175008191,230.63,0.000398,30]
[322650836,1713175627905,1148.9564764,0.0002041,2]
[322650837,1713175645146,-783.63141595,0.00021,2]
[322650838,1713175645172,-154.75239617,0.00021,2]
[322650839,1713175645198,-300.0,0.00021001,2]
[322650840,1713175645221,-300.0,0.00021001,2]
[322650841,1713175645247,-326.84815688,0.00021001,2]
[322650842,1713175645271,-216.09314923,0.00021002,2]
[322650843,1713175645297,-163.91782719,0.00021002,2]
[322650844,1713175645319,-517.35391354,0.00021002,2]
[322650845,1713175724327,326.84815688,0.00020999,2]
[322650846,1713175745163,-525.49067281,0.00021,2]
[322650847,1713175745184,-7855.0254148,0.00021001,2]
[322650848,1713175745206,-1526.72678117,0.00021002,2]
[322650849,1713175745226,-300.0,0.00021005,2]
[322650850,1713175745247,-300.0,0.00021005,2]
[322650851,1713175745267,-662.7739775,0.00021008,2]
[322650852,1713175745287,-746.15235236,0.00021109,2]
[322650853,1713175754096,-77.88573297,0.00021109,2]
[322650854,1713175754117,-519.74365,0.0002111,2]
[322650855,1713175754137,-739.1045113,0.00021141,2]
[322650856,1713175754156,-254.23109902,0.00022023,2]
[322650857,1713175759110,-103.77288013,0.00022023,2]
[322650858,1713175759130,-153.6778926,0.00022077,2]
[322650859,1713175759153,-262.49884981,0.0002212,2]
[322650860,1713175759174,-154.86060691,0.0002212,2]
[322650861,1713175759193,-72377.48324442,0.0002212,2]
[322650862,1713175759213,-597.74966765,0.00022121,2]
[322650863,1713175759233,-213.49851723,0.00022121,2]
[322650864,1713175759252,-163.668831,0.00022179,2]
[322650865,1713175759272,-248.18020488,0.0002222,2]
[322650866,1713175759290,-616.42399922,0.0002222,2]
[322650867,1713175759309,-3403.02643988,0.00022221,2]
[322650868,1713175759328,-24900.0,0.00022223,2]
[322650869,1713175759347,-2889.48477441,0.0002249,2]
[322650870,1713175759367,-153.67789243,0.0002259,2]
[322650871,1713175759390,-420.0,0.00022849,2]
[322650872,1713175759410,-153.67789243,0.00023102,2]
[322650873,1713175759429,-420.0,0.00023106,2]
[322650874,1713175759449,-153.67789243,0.00023615,2]
[322650875,1713175759468,-153.67789243,0.00024127,2]
[322650876,1713175759488,-153.67789243,0.0002464,2]
[322650877,1713175759508,-200.0,0.00024658,2]
[322650878,1713175759529,-380.0,0.00024658,2]
[322650879,1713175759553,-587.0,0.00024854,2]
[322650880,1713175759577,-156.98200501,0.00025,2]
[322650881,1713175759598,-153.67789243,0.00025153,2]
[322650882,1713175759618,-406.06922622,0.00025171,2]
[322650883,1713175765598,812.29452835,0.00022021,2]
[322650886,1713175830473,1514.71005503,0.00020123,2]
[322650936,1713175832780,-812.29452828,0.00024849,2]
[322650938,1713175832790,-156.98200501,0.00025,2]
[322650940,1713175832800,-1514.71005503,0.00025123,2]
[322650942,1713175832809,-3849.29944569,0.0002517,2]
[322650944,1713175832819,-2483.41554816,0.00025171,2]
[322650946,1713175832828,-11199.59532431,0.00025305,2]
[322651073,1713175840267,-4554.53189829,0.00025305,2]
[322651075,1713175840284,-153.67789243,0.00025665,2]
[322651077,1713175840294,-153.67789243,0.00026178,2]
[322651079,1713175840303,-300.0,0.00026373,2]
[322651082,1713175840313,-300.0,0.00026373,2]
[322651084,1713175840323,-24900.0,0.00026374,2]
[322651085,1713175840331,-153.67789243,0.0002669,2]
[322651086,1713175840341,-447.01396814,0.0002699,2]
[322651087,1713175840350,-13645.32635987,0.00027,2]
[322651088,1713175840359,-154.75239617,0.00027,2]
[322651089,1713175840368,-153.67789243,0.00027203,2]
[322651090,1713175840377,-173.605879,0.00027397,2]
[322651091,1713175840386,-166.666666,0.00027397,2]
[322651092,1713175840395,-1000.0,0.00027397,2]
[322651093,1713175840404,-157.836614,0.00027397,2]
[322651094,1713175840413,-172.63028827,0.000275,2]
[322651095,1713175840422,-172.63028826,0.000275,2]
[322651096,1713175840431,-172.63028826,0.000275,2]
[322651097,1713175840440,-238.66931944,0.00027615,2]
[322651098,1713175840448,-812.29452828,0.00027677,3]
[322651099,1713175840457,-153.67789243,0.00027715,2]
[322651100,1713175840466,-2889.48477438,0.00027852,2]
[322651101,1713175840475,-166.666666,0.00028038,2]
[322651102,1713175840484,-153.67789243,0.00028228,2]
[322651103,1713175840493,-420.0,0.00028531,2]
[322651104,1713175840502,-166.666666,0.00028679,2]
[322651105,1713175840510,-153.67789243,0.00028741,2]
[322651106,1713175840519,-3472.40074118,0.0002877,2]
[322651107,1713175840528,-277.45481034,0.00028798,2]
[322651108,1713175840537,-3000.70025587,0.000288,2]
[322651109,1713175840546,-841.92417868,0.00029,2]
[322651110,1713175840555,-420.0,0.00029011,2]
[322651111,1713175840568,-238.66931943,0.00029204,2]
[322651112,1713175840577,-153.67789243,0.00029253,2]
[322651113,1713175840586,-166.666666,0.00029321,2]
[322651114,1713175840595,-153.67789243,0.00029766,2]
[322651115,1713175840606,-5879.12922064,0.0002978,10]
[322651116,1713175840615,-166.666666,0.00029962,2]
[322651117,1713175840624,-168.59441524,0.0003,2]
[322651118,1713175840633,-790.21258795,0.0003,5]
[322651119,1713175840646,-175.0,0.0003,2]
[322651120,1713175840655,-1514.71005503,0.00030123,2]
[322651121,1713175840663,-500.0,0.00030136,2]